[Event "Titled Tuesday Blitz March 22 Late 2022"]
[White "Donchenko, Anatoly"]
[Black "Mekhitarian, Krikor Sevag"]
[WhiteFideId "4106091"]
[BlackFideId "2107660"]
[WhiteElo "2339"]
[BlackElo "2598"]
[Result "1-0"]
[Round "05"]
[TimeControl "180+1"]
[Date "2022.03.22"]
[WhiteClock "0:01:53"]
[BlackClock "0:01:35"]

1. Nf3 {[%clk 0:03:00]}  d5 {[%clk 0:02:54]} 2. d4 {[%clk 0:03:00]}  Bf5 {[%clk 0:02:51]} 3. c4 {[%clk 0:02:59]}  e6 {[%clk 0:02:52]} 4. Nc3 {[%clk 0:02:58]}  Nf6 {[%clk 0:02:51]} 5. Bg5 {[%clk 0:02:57]}  c6 {[%clk 0:02:46]} 6. e3 {[%clk 0:02:56]}  Nbd7 {[%clk 0:02:43]} 7. Bd3 {[%clk 0:02:55]}  Bg6 {[%clk 0:02:43]} 8. O-O {[%clk 0:02:53]}  Be7 {[%clk 0:02:35]} 9. Qe2 {[%clk 0:02:51]}  Ne4 {[%clk 0:02:32]} 10. Bxe7 {[%clk 0:02:49]}  Qxe7 {[%clk 0:02:33]} 11. Bxe4 {[%clk 0:02:35]}  dxe4 {[%clk 0:02:33]} 12. Nd2 {[%clk 0:02:30]}  f5 {[%clk 0:02:33]} 13. f3 {[%clk 0:02:29]}  exf3 {[%clk 0:02:30]} 14. Nxf3 {[%clk 0:02:28]}  O-O {[%clk 0:02:30]} 15. Rad1 {[%clk 0:02:25]}  e5 {[%clk 0:02:28]} 16. d5 {[%clk 0:02:23]}  Rae8 {[%clk 0:02:25]} 17. e4 {[%clk 0:02:21]}  fxe4 {[%clk 0:02:00]} 18. Nxe4 {[%clk 0:02:19]}  Bxe4 {[%clk 0:02:01]} 19. Qxe4 {[%clk 0:02:19]}  Rf4 {[%clk 0:02:02]} 20. Qe3 {[%clk 0:02:17]}  Rxc4 {[%clk 0:01:57]} 21. dxc6 {[%clk 0:02:11]}  Rxc6 {[%clk 0:01:53]} 22. Qb3+ {[%clk 0:02:09]}  Qe6 {[%clk 0:01:34]} 23. Qxe6+ {[%clk 0:02:01]}  Rcxe6 {[%clk 0:01:35]} 24. Rxd7 {[%clk 0:02:00]}  e4 {[%clk 0:01:35]} 25. Nd4 {[%clk 0:01:55]}  R6e7 {[%clk 0:01:35]} 26. Rxe7 {[%clk 0:01:54]}  Rxe7 {[%clk 0:01:35]} 27. Kf2 {[%clk 0:01:53]} 1-0


[Site "https://www.chess.com"]

[Event "Titled Tuesday Blitz March 22 Late 2022"]
[White "Fernandez, Daniel Howard"]
[Black "Petrova, Irina"]
[WhiteFideId "5801605"]
[BlackFideId "14124122"]
[WhiteElo "2466"]
[BlackElo "1993"]
[Result "1-0"]
[Round "05"]
[TimeControl "180+1"]
[Date "2022.03.22"]
[WhiteClock "0:02:01"]
[BlackClock "0:01:40"]

1. e4 {[%clk 0:02:55]}  d6 {[%clk 0:03:00]} 2. d4 {[%clk 0:02:55]}  Nf6 {[%clk 0:03:00]} 3. Nc3 {[%clk 0:02:55]}  e5 {[%clk 0:03:01]} 4. Nf3 {[%clk 0:02:53]}  Nbd7 {[%clk 0:03:00]} 5. Rg1 {[%clk 0:02:53]}  g6 {[%clk 0:03:00]} 6. g4 {[%clk 0:02:46]}  Bg7 {[%clk 0:03:00]} 7. Be3 {[%clk 0:02:26]}  O-O {[%clk 0:02:58]} 8. Qd2 {[%clk 0:02:24]}  exd4 {[%clk 0:02:53]} 9. Nxd4 {[%clk 0:02:25]}  Nc5 {[%clk 0:02:48]} 10. f3 {[%clk 0:02:24]}  a6 {[%clk 0:02:35]} 11. O-O-O {[%clk 0:02:24]}  b5 {[%clk 0:02:35]} 12. e5 {[%clk 0:02:22]}  dxe5 {[%clk 0:02:28]} 13. Ndxb5 {[%clk 0:02:20]}  Qxd2+ {[%clk 0:02:26]} 14. Rxd2 {[%clk 0:02:21]}  Nb3+ {[%clk 0:02:09]} 15. cxb3 {[%clk 0:02:20]}  axb5 {[%clk 0:02:10]} 16. Bc5 {[%clk 0:02:14]}  Re8 {[%clk 0:01:45]} 17. Bxb5 {[%clk 0:02:14]}  Bb7 {[%clk 0:01:45]} 18. Bxe8 {[%clk 0:02:13]}  Rxe8 {[%clk 0:01:46]} 19. g5 {[%clk 0:02:00]}  Nh5 {[%clk 0:01:41]} 20. Rgd1 {[%clk 0:02:00]}  Bxf3 {[%clk 0:01:40]} 21. Rd8 {[%clk 0:02:01]} 1-0


[Site "https://www.chess.com"]

[Event "Titled Tuesday Blitz March 22 Late 2022"]
[White "Fernandez Siles, Luis"]
[Black "Perera Alfonso, Rene Humberto"]
[WhiteFideId "2209420"]
[BlackFideId "3514722"]
[WhiteElo "2212"]
[BlackElo "2313"]
[Result "0-1"]
[Round "05"]
[TimeControl "180+1"]
[Date "2022.03.22"]
[WhiteClock "0:00:01"]
[BlackClock "0:00:59"]

1. d4 {[%clk 0:03:00]}  d5 {[%clk 0:02:56]} 2. c4 {[%clk 0:03:00]}  c6 {[%clk 0:02:56]} 3. cxd5 {[%clk 0:02:59]}  cxd5 {[%clk 0:02:56]} 4. Bf4 {[%clk 0:03:00]}  Nf6 {[%clk 0:02:54]} 5. e3 {[%clk 0:02:59]}  Nc6 {[%clk 0:02:48]} 6. Nc3 {[%clk 0:03:00]}  Bf5 {[%clk 0:02:48]} 7. Qb3 {[%clk 0:02:53]}  Qb6 {[%clk 0:02:47]} 8. Qxb6 {[%clk 0:02:37]}  axb6 {[%clk 0:02:48]} 9. Bb5 {[%clk 0:02:34]}  e6 {[%clk 0:02:47]} 10. Nf3 {[%clk 0:02:31]}  Bb4 {[%clk 0:02:46]} 11. Ne5 {[%clk 0:02:23]}  Rc8 {[%clk 0:02:44]} 12. O-O {[%clk 0:02:17]}  Ke7 {[%clk 0:02:41]} 13. Rfc1 {[%clk 0:02:04]}  Nxe5 {[%clk 0:02:34]} 14. Bxe5 {[%clk 0:01:59]}  Bxc3 {[%clk 0:02:33]} 15. bxc3 {[%clk 0:01:55]}  Ne4 {[%clk 0:02:31]} 16. c4 {[%clk 0:01:34]}  f6 {[%clk 0:02:29]} 17. Bg3 {[%clk 0:01:31]}  Nxg3 {[%clk 0:02:29]} 18. hxg3 {[%clk 0:01:31]}  Bd3 {[%clk 0:02:29]} 19. Rc3 {[%clk 0:01:25]}  Bxc4 {[%clk 0:02:19]} 20. Rac1 {[%clk 0:01:24]}  Rc7 {[%clk 0:02:19]} 21. e4 {[%clk 0:01:02]}  Rhc8 {[%clk 0:02:15]} 22. exd5 {[%clk 0:01:00]}  exd5 {[%clk 0:02:16]} 23. Bxc4 {[%clk 0:00:55]}  Rxc4 {[%clk 0:02:16]} 24. Re3+ {[%clk 0:00:55]}  Kf8 {[%clk 0:02:06]} 25. Rb1 {[%clk 0:00:39]}  Rc1+ {[%clk 0:02:06]} 26. Rxc1 {[%clk 0:00:38]}  Rxc1+ {[%clk 0:02:07]} 27. Kh2 {[%clk 0:00:38]}  Rc6 {[%clk 0:02:05]} 28. g4 {[%clk 0:00:37]}  Kf7 {[%clk 0:02:03]} 29. Kg3 {[%clk 0:00:31]}  Re6 {[%clk 0:02:03]} 30. Rb3 {[%clk 0:00:31]}  Ke7 {[%clk 0:02:03]} 31. Rb5 {[%clk 0:00:26]}  Rd6 {[%clk 0:02:01]} 32. Kf4 {[%clk 0:00:26]}  Kd7 {[%clk 0:02:01]} 33. a4 {[%clk 0:00:25]}  Kc6 {[%clk 0:02:00]} 34. f3 {[%clk 0:00:24]}  Re6 {[%clk 0:01:59]} 35. Rb2 {[%clk 0:00:22]}  Re1 {[%clk 0:01:55]} 36. Rc2+ {[%clk 0:00:22]}  Kd7 {[%clk 0:01:55]} 37. Rb2 {[%clk 0:00:22]}  Kc7 {[%clk 0:01:55]} 38. Rc2+ {[%clk 0:00:22]}  Kd7 {[%clk 0:01:56]} 39. Rb2 {[%clk 0:00:23]}  Re6 {[%clk 0:01:39]} 40. Rb5 {[%clk 0:00:18]}  Kc6 {[%clk 0:01:37]} 41. Rb2 {[%clk 0:00:19]}  g6 {[%clk 0:01:35]} 42. Rc2+ {[%clk 0:00:18]}  Kd7 {[%clk 0:01:35]} 43. Rb2 {[%clk 0:00:18]}  Rc6 {[%clk 0:01:35]} 44. Kg3 {[%clk 0:00:17]}  Kc7 {[%clk 0:01:34]} 45. Re2 {[%clk 0:00:17]}  Kd6 {[%clk 0:01:33]} 46. Rb2 {[%clk 0:00:17]}  Kd7 {[%clk 0:01:27]} 47. Rb5 {[%clk 0:00:17]}  Rd6 {[%clk 0:01:26]} 48. Kf4 {[%clk 0:00:16]}  Kc6 {[%clk 0:01:26]} 49. g5 {[%clk 0:00:16]}  fxg5+ {[%clk 0:01:25]} 50. Kxg5 {[%clk 0:00:16]}  Re6 {[%clk 0:01:21]} 51. Rb2 {[%clk 0:00:16]}  Re3 {[%clk 0:01:13]} 52. Rc2+ {[%clk 0:00:16]}  Kd7 {[%clk 0:01:13]} 53. Rb2 {[%clk 0:00:16]}  Kc7 {[%clk 0:01:13]} 54. Rc2+ {[%clk 0:00:17]}  Kb8 {[%clk 0:01:14]} 55. Rb2 {[%clk 0:00:11]}  Kc7 {[%clk 0:01:10]} 56. Rc2+ {[%clk 0:00:11]}  Kd7 {[%clk 0:01:10]} 57. Rb2 {[%clk 0:00:11]}  Re6 {[%clk 0:01:09]} 58. Kh6 {[%clk 0:00:09]}  Kc7 {[%clk 0:01:08]} 59. Kxh7 {[%clk 0:00:06]}  g5 {[%clk 0:01:08]} 60. Rb5 {[%clk 0:00:04]}  Kc6 {[%clk 0:01:07]} 61. Rb2 {[%clk 0:00:04]}  Kd7 {[%clk 0:01:06]} 62. Kg7 {[%clk 0:00:02]}  Ke7 {[%clk 0:01:02]} 63. Rc2 {[%clk 0:00:02]}  Kd7 {[%clk 0:01:00]} 64. Kf7 {[%clk 0:00:01]}  Re3 {[%clk 0:00:59]} 0-1


[Site "https://www.chess.com"]

[Event "Titled Tuesday Blitz March 22 Late 2022"]
[White "Fishbein, Alexander"]
[Black "Sliwicki, Damian"]
[WhiteFideId "2000377"]
[BlackFideId "1127128"]
[WhiteElo "2442"]
[BlackElo "2067"]
[Result "1/2-1/2"]
[Round "05"]
[TimeControl "180+1"]
[Date "2022.03.22"]
[WhiteClock "0:00:06"]
[BlackClock "0:00:07"]

1. e4 {[%clk 0:02:59]}  c5 {[%clk 0:02:58]} 2. Nf3 {[%clk 0:02:58]}  g6 {[%clk 0:02:57]} 3. c4 {[%clk 0:02:57]}  Nc6 {[%clk 0:02:05]} 4. d4 {[%clk 0:02:54]}  cxd4 {[%clk 0:02:03]} 5. Nxd4 {[%clk 0:02:53]}  Nf6 {[%clk 0:02:03]} 6. Nc3 {[%clk 0:02:52]}  Nxd4 {[%clk 0:02:04]} 7. Qxd4 {[%clk 0:02:51]}  d6 {[%clk 0:02:05]} 8. f3 {[%clk 0:02:49]}  Bg7 {[%clk 0:02:04]} 9. Be3 {[%clk 0:02:48]}  O-O {[%clk 0:02:03]} 10. Qd2 {[%clk 0:02:48]}  Be6 {[%clk 0:02:01]} 11. Rc1 {[%clk 0:02:47]}  Qa5 {[%clk 0:01:59]} 12. Be2 {[%clk 0:02:45]}  Rac8 {[%clk 0:01:53]} 13. b3 {[%clk 0:02:43]}  Rfd8 {[%clk 0:01:40]} 14. O-O {[%clk 0:02:31]}  a6 {[%clk 0:01:36]} 15. Rfd1 {[%clk 0:02:28]}  Nd7 {[%clk 0:01:32]} 16. Bf1 {[%clk 0:02:08]}  f5 {[%clk 0:01:29]} 17. exf5 {[%clk 0:02:05]}  Bxf5 {[%clk 0:01:30]} 18. Qd5+ {[%clk 0:01:43]}  Qxd5 {[%clk 0:01:29]} 19. Nxd5 {[%clk 0:01:44]}  Kf7 {[%clk 0:01:19]} 20. Bg5 {[%clk 0:01:37]}  Nf6 {[%clk 0:01:12]} 21. Nb6 {[%clk 0:01:29]}  Rc6 {[%clk 0:01:12]} 22. c5 {[%clk 0:01:24]}  Nd7 {[%clk 0:00:45]} 23. Bc4+ {[%clk 0:01:11]}  Be6 {[%clk 0:00:26]} 24. Bxe6+ {[%clk 0:01:06]}  Kxe6 {[%clk 0:00:26]} 25. Re1+ {[%clk 0:01:05]}  Be5 {[%clk 0:00:18]} 26. f4 {[%clk 0:01:03]}  Nxb6 {[%clk 0:00:18]} 27. fxe5 {[%clk 0:00:56]}  dxc5 {[%clk 0:00:15]} 28. Be3 {[%clk 0:00:48]}  Rd5 {[%clk 0:00:11]} 29. b4 {[%clk 0:00:47]}  Nd7 {[%clk 0:00:09]} 30. bxc5 {[%clk 0:00:45]}  Nxc5 {[%clk 0:00:10]} 31. Rb1 {[%clk 0:00:38]}  Rxe5 {[%clk 0:00:09]} 32. Bxc5 {[%clk 0:00:19]}  Rxc5 {[%clk 0:00:10]} 33. Rxe5+ {[%clk 0:00:18]}  Rxe5 {[%clk 0:00:11]} 34. Rxb7 {[%clk 0:00:17]}  Re2 {[%clk 0:00:11]} 35. Rb6+ {[%clk 0:00:16]}  Kd5 {[%clk 0:00:09]} 36. Rxa6 {[%clk 0:00:16]}  e5 {[%clk 0:00:09]} 37. Kf1 {[%clk 0:00:16]}  Rb2 {[%clk 0:00:08]} 38. Ra8 {[%clk 0:00:16]}  Ke4 {[%clk 0:00:06]} 39. h3 {[%clk 0:00:14]}  Ke3 {[%clk 0:00:06]} 40. Ra3+ {[%clk 0:00:14]}  Kf4 {[%clk 0:00:05]} 41. g3+ {[%clk 0:00:13]}  Ke4 {[%clk 0:00:03]} 42. Ra4+ {[%clk 0:00:13]}  Kf3 {[%clk 0:00:04]} 43. Ra3+ {[%clk 0:00:13]}  Ke4 {[%clk 0:00:05]} 44. Ra4+ {[%clk 0:00:13]}  Kf5 {[%clk 0:00:05]} 45. g4+ {[%clk 0:00:09]}  Kg5 {[%clk 0:00:04]} 46. Kg1 {[%clk 0:00:09]}  h5 {[%clk 0:00:03]} 47. gxh5 {[%clk 0:00:08]}  gxh5 {[%clk 0:00:04]} 48. h4+ {[%clk 0:00:09]}  Kf5 {[%clk 0:00:04]} 49. Kf1 {[%clk 0:00:09]}  e4 {[%clk 0:00:05]} 50. Ra8 {[%clk 0:00:07]}  Kf4 {[%clk 0:00:06]} 51. Ra3 {[%clk 0:00:06]}  e3 {[%clk 0:00:06]} 52. Ra8 {[%clk 0:00:06]}  Kf3 {[%clk 0:00:06]} 53. Rf8+ {[%clk 0:00:06]}  Kg3 {[%clk 0:00:07]} 54. a4 {[%clk 0:00:05]}  Kxh4 {[%clk 0:00:06]} 55. Re8 {[%clk 0:00:06]}  Rb3 {[%clk 0:00:05]} 56. Ke2 {[%clk 0:00:05]}  Ra3 {[%clk 0:00:06]} 57. Rxe3 {[%clk 0:00:03]}  Rxa4 {[%clk 0:00:05]} 58. Kf2 {[%clk 0:00:03]}  Rg4 {[%clk 0:00:05]} 59. Rf3 {[%clk 0:00:03]}  Rg8 {[%clk 0:00:05]} 60. Rf4+ {[%clk 0:00:03]}  Kg5 {[%clk 0:00:05]} 61. Rf3 {[%clk 0:00:03]}  h4 {[%clk 0:00:05]} 62. Kg2 {[%clk 0:00:03]}  Ra8 {[%clk 0:00:05]} 63. Kh2 {[%clk 0:00:03]}  Ra2+ {[%clk 0:00:05]} 64. Kh1 {[%clk 0:00:03]}  Kg4 {[%clk 0:00:04]} 65. Rf1 {[%clk 0:00:04]}  Kg3 {[%clk 0:00:04]} 66. Rc1 {[%clk 0:00:04]}  Rh2+ {[%clk 0:00:04]} 67. Kg1 {[%clk 0:00:04]}  Rg2+ {[%clk 0:00:04]} 68. Kh1 {[%clk 0:00:05]}  Kh3 {[%clk 0:00:03]} 69. Rc3+ {[%clk 0:00:04]}  Rg3 {[%clk 0:00:04]} 70. Rc1 {[%clk 0:00:04]}  Re3 {[%clk 0:00:03]} 71. Rd1 {[%clk 0:00:04]}  Kg3 {[%clk 0:00:04]} 72. Rc1 {[%clk 0:00:04]}  h3 {[%clk 0:00:04]} 73. Rg1+ {[%clk 0:00:04]}  Kf2 {[%clk 0:00:03]} 74. Rb1 {[%clk 0:00:05]}  Kg3 {[%clk 0:00:03]} 75. Rg1+ {[%clk 0:00:04]}  Kh4 {[%clk 0:00:04]} 76. Kh2 {[%clk 0:00:04]}  Re2+ {[%clk 0:00:05]} 77. Kh1 {[%clk 0:00:04]}  Rd2 {[%clk 0:00:03]} 78. Rb1 {[%clk 0:00:04]}  h2 {[%clk 0:00:04]} 79. Rb4+ {[%clk 0:00:04]}  Kh3 {[%clk 0:00:04]} 80. Rb3+ {[%clk 0:00:04]}  Kg4 {[%clk 0:00:04]} 81. Rb4+ {[%clk 0:00:05]}  Kg3 {[%clk 0:00:04]} 82. Rb3+ {[%clk 0:00:05]}  Kf4 {[%clk 0:00:05]} 83. Rb4+ {[%clk 0:00:05]}  Ke3 {[%clk 0:00:05]} 84. Rb3+ {[%clk 0:00:06]}  Kd4 {[%clk 0:00:05]} 85. Rh3 {[%clk 0:00:06]}  Re2 {[%clk 0:00:05]} 86. Rxh2 {[%clk 0:00:06]}  Re1+ {[%clk 0:00:06]} 87. Kg2 {[%clk 0:00:06]}  Re2+ {[%clk 0:00:06]} 88. Kg3 {[%clk 0:00:06]}  Rxh2 {[%clk 0:00:07]} 89. Kxh2 {[%clk 0:00:06]} 1/2-1/2


[Site "https://www.chess.com"]

[Event "Titled Tuesday Blitz March 22 Late 2022"]
[White "Godzwon, Iwo"]
[Black "Svicevic, Rastko"]
[WhiteFideId "21802483"]
[BlackFideId "916315"]
[WhiteElo "2201"]
[BlackElo "2132"]
[Result "1-0"]
[Round "05"]
[TimeControl "180+1"]
[Date "2022.03.22"]
[WhiteClock "0:00:12"]
[BlackClock "0:00:02"]

1. e4 {[%clk 0:03:00]}  c6 {[%clk 0:02:59]} 2. d4 {[%clk 0:03:00]}  d5 {[%clk 0:02:58]} 3. e5 {[%clk 0:03:00]}  c5 {[%clk 0:02:58]} 4. dxc5 {[%clk 0:03:00]}  Nc6 {[%clk 0:02:54]} 5. Nf3 {[%clk 0:02:56]}  Bg4 {[%clk 0:02:51]} 6. c3 {[%clk 0:02:51]}  Bxf3 {[%clk 0:02:39]} 7. Qxf3 {[%clk 0:02:19]}  Nxe5 {[%clk 0:02:24]} 8. Bb5+ {[%clk 0:02:19]}  Nc6 {[%clk 0:02:23]} 9. c4 {[%clk 0:02:18]}  Nf6 {[%clk 0:02:17]} 10. Nc3 {[%clk 0:02:14]}  e6 {[%clk 0:02:10]} 11. O-O {[%clk 0:02:13]}  Bxc5 {[%clk 0:01:55]} 12. cxd5 {[%clk 0:02:02]}  exd5 {[%clk 0:01:49]} 13. Bg5 {[%clk 0:01:58]}  Be7 {[%clk 0:01:37]} 14. Bxf6 {[%clk 0:01:09]}  Bxf6 {[%clk 0:01:38]} 15. Nxd5 {[%clk 0:01:09]}  O-O {[%clk 0:01:37]} 16. Nxf6+ {[%clk 0:01:00]}  Qxf6 {[%clk 0:01:36]} 17. Qxf6 {[%clk 0:01:00]}  gxf6 {[%clk 0:01:36]} 18. Bxc6 {[%clk 0:00:56]}  bxc6 {[%clk 0:01:36]} 19. Rac1 {[%clk 0:00:56]}  Rab8 {[%clk 0:01:35]} 20. Rc2 {[%clk 0:00:56]}  Rb6 {[%clk 0:01:31]} 21. Rfc1 {[%clk 0:00:56]}  Rd8 {[%clk 0:01:25]} 22. Kf1 {[%clk 0:00:49]}  Rd6 {[%clk 0:01:25]} 23. b3 {[%clk 0:00:50]}  Kf8 {[%clk 0:01:24]} 24. Ke2 {[%clk 0:00:46]}  Ke7 {[%clk 0:01:24]} 25. Rc3 {[%clk 0:00:46]}  Re6+ {[%clk 0:01:18]} 26. Kf1 {[%clk 0:00:46]}  Rd6 {[%clk 0:01:16]} 27. R1c2 {[%clk 0:00:45]}  Re6 {[%clk 0:01:00]} 28. Rh3 {[%clk 0:00:42]}  a5 {[%clk 0:00:55]} 29. Rc4 {[%clk 0:00:30]}  Rd6 {[%clk 0:00:49]} 30. Rxh7 {[%clk 0:00:28]}  Rd1+ {[%clk 0:00:49]} 31. Ke2 {[%clk 0:00:28]}  Ra1 {[%clk 0:00:50]} 32. Ra4 {[%clk 0:00:28]}  Rb5 {[%clk 0:00:45]} 33. Rhh4 {[%clk 0:00:29]}  Re5+ {[%clk 0:00:45]} 34. Kf3 {[%clk 0:00:29]}  f5 {[%clk 0:00:41]} 35. Rhc4 {[%clk 0:00:28]}  Kd6 {[%clk 0:00:38]} 36. Rd4+ {[%clk 0:00:23]}  Kc7 {[%clk 0:00:33]} 37. Rd3 {[%clk 0:00:22]}  Kb6 {[%clk 0:00:25]} 38. h4 {[%clk 0:00:21]}  Rh1 {[%clk 0:00:23]} 39. Re3 {[%clk 0:00:19]}  Rc5 {[%clk 0:00:20]} 40. g3 {[%clk 0:00:18]}  Rc2 {[%clk 0:00:18]} 41. Re2 {[%clk 0:00:19]}  Rc3+ {[%clk 0:00:18]} 42. Kg2 {[%clk 0:00:19]}  Rd1 {[%clk 0:00:16]} 43. Rf4 {[%clk 0:00:19]}  Rd5 {[%clk 0:00:16]} 44. Re7 {[%clk 0:00:19]}  Rc2 {[%clk 0:00:15]} 45. Rxf7 {[%clk 0:00:14]}  Rxa2 {[%clk 0:00:14]} 46. h5 {[%clk 0:00:14]}  Rb2 {[%clk 0:00:11]} 47. h6 {[%clk 0:00:13]}  Rxb3 {[%clk 0:00:10]} 48. h7 {[%clk 0:00:14]}  Rd8 {[%clk 0:00:10]} 49. R4xf5 {[%clk 0:00:14]}  Rh8 {[%clk 0:00:10]} 50. Rg7 {[%clk 0:00:15]}  Rb5 {[%clk 0:00:09]} 51. Rff7 {[%clk 0:00:14]}  Rh5 {[%clk 0:00:08]} 52. g4 {[%clk 0:00:12]}  Rh4 {[%clk 0:00:06]} 53. g5 {[%clk 0:00:12]}  a4 {[%clk 0:00:05]} 54. g6 {[%clk 0:00:12]}  a3 {[%clk 0:00:05]} 55. Rb7+ {[%clk 0:00:12]}  Kc5 {[%clk 0:00:04]} 56. Ra7 {[%clk 0:00:12]}  Kb4 {[%clk 0:00:04]} 57. Rg8 {[%clk 0:00:12]}  Rg4+ {[%clk 0:00:02]} 58. Kf3 {[%clk 0:00:12]} 1-0


[Site "https://www.chess.com"]

[Event "Titled Tuesday Blitz March 22 Late 2022"]
[White "Golubev, Mikhail"]
[Black "Muetsch, Annmarie"]
[WhiteFideId "14100983"]
[BlackFideId "12971367"]
[WhiteElo "2374"]
[BlackElo "2249"]
[Result "0-1"]
[Round "05"]
[TimeControl "180+1"]
[Date "2022.03.22"]
[WhiteClock "0:00:01"]
[BlackClock "0:00:38"]

1. e4 {[%clk 0:03:00]}  c5 {[%clk 0:02:57]} 2. Nf3 {[%clk 0:02:59]}  Nc6 {[%clk 0:02:57]} 3. Nc3 {[%clk 0:02:58]}  e5 {[%clk 0:02:49]} 4. Bc4 {[%clk 0:02:57]}  d6 {[%clk 0:02:47]} 5. d3 {[%clk 0:02:51]}  Be7 {[%clk 0:02:47]} 6. O-O {[%clk 0:02:44]}  Nf6 {[%clk 0:02:46]} 7. Ng5 {[%clk 0:02:34]}  O-O {[%clk 0:02:45]} 8. f4 {[%clk 0:02:34]}  exf4 {[%clk 0:02:37]} 9. Bxf4 {[%clk 0:02:31]}  Ne5 {[%clk 0:02:37]} 10. Bxe5 {[%clk 0:02:02]}  dxe5 {[%clk 0:02:38]} 11. Qe1 {[%clk 0:01:13]}  h6 {[%clk 0:02:34]} 12. Nf3 {[%clk 0:01:12]}  a6 {[%clk 0:02:06]} 13. a4 {[%clk 0:01:10]}  Nh5 {[%clk 0:01:54]} 14. Kh1 {[%clk 0:01:03]}  Bd6 {[%clk 0:01:49]} 15. a5 {[%clk 0:00:40]}  Nf4 {[%clk 0:01:45]} 16. Nd5 {[%clk 0:00:35]}  Nxd5 {[%clk 0:01:40]} 17. Bxd5 {[%clk 0:00:36]}  Bc7 {[%clk 0:01:37]} 18. Qg3 {[%clk 0:00:23]}  Qd6 {[%clk 0:01:36]} 19. Nh4 {[%clk 0:00:19]}  g5 {[%clk 0:01:21]} 20. Nf5 {[%clk 0:00:19]}  Bxf5 {[%clk 0:01:15]} 21. Rxf5 {[%clk 0:00:18]}  Kg7 {[%clk 0:01:15]} 22. h4 {[%clk 0:00:17]}  f6 {[%clk 0:01:15]} 23. h5 {[%clk 0:00:17]}  Rad8 {[%clk 0:01:05]} 24. Rf2 {[%clk 0:00:13]}  f5 {[%clk 0:01:02]} 25. Bxb7 {[%clk 0:00:06]}  f4 {[%clk 0:00:55]} 26. Qg4 {[%clk 0:00:07]}  Rb8 {[%clk 0:00:49]} 27. Bd5 {[%clk 0:00:06]}  Rxb2 {[%clk 0:00:48]} 28. Bb3 {[%clk 0:00:05]}  Qd4 {[%clk 0:00:42]} 29. Qe6 {[%clk 0:00:03]}  Rxb3 {[%clk 0:00:39]} 30. Qg6+ {[%clk 0:00:02]}  Kh8 {[%clk 0:00:38]} 31. Qxh6+ {[%clk 0:00:01]}  Kg8 {[%clk 0:00:38]} 0-1


[Site "https://www.chess.com"]

[Event "Titled Tuesday Blitz March 22 Late 2022"]
[White "Hartikainen, Jarmo"]
[Black "Janturin, Artur"]
[WhiteFideId "503134"]
[BlackFideId "4130022"]
[WhiteElo "2105"]
[BlackElo "2344"]
[Result "0-1"]
[Round "05"]
[TimeControl "180+1"]
[Date "2022.03.22"]
[WhiteClock "0:00:07"]
[BlackClock "0:00:14"]

1. e4 {[%clk 0:02:59]}  a6 {[%clk 0:02:57]} 2. d4 {[%clk 0:02:57]}  b5 {[%clk 0:02:57]} 3. Nf3 {[%clk 0:02:56]}  Bb7 {[%clk 0:02:57]} 4. Bd3 {[%clk 0:02:55]}  Nf6 {[%clk 0:02:56]} 5. Qe2 {[%clk 0:02:55]}  e6 {[%clk 0:02:56]} 6. h3 {[%clk 0:02:51]}  c5 {[%clk 0:02:56]} 7. c3 {[%clk 0:02:51]}  Be7 {[%clk 0:02:55]} 8. Bf4 {[%clk 0:02:49]}  Nc6 {[%clk 0:02:53]} 9. Nbd2 {[%clk 0:02:47]}  Rc8 {[%clk 0:02:39]} 10. O-O {[%clk 0:02:45]}  cxd4 {[%clk 0:02:37]} 11. cxd4 {[%clk 0:02:45]}  Nb4 {[%clk 0:02:37]} 12. a3 {[%clk 0:02:10]}  Nxd3 {[%clk 0:02:36]} 13. Qxd3 {[%clk 0:02:10]}  O-O {[%clk 0:02:35]} 14. Rac1 {[%clk 0:02:10]}  Qb6 {[%clk 0:02:34]} 15. Rfe1 {[%clk 0:01:57]}  d6 {[%clk 0:02:04]} 16. Bg5 {[%clk 0:01:34]}  h6 {[%clk 0:01:50]} 17. Bh4 {[%clk 0:01:33]}  Rfe8 {[%clk 0:01:33]} 18. Rc2 {[%clk 0:01:00]}  Rxc2 {[%clk 0:01:31]} 19. Qxc2 {[%clk 0:01:01]}  Rc8 {[%clk 0:01:31]} 20. Qd3 {[%clk 0:01:01]}  Qc7 {[%clk 0:01:15]} 21. e5 {[%clk 0:00:40]}  Ne8 {[%clk 0:00:22]} 22. Bxe7 {[%clk 0:00:38]}  Qxe7 {[%clk 0:00:23]} 23. Ne4 {[%clk 0:00:36]}  Bxe4 {[%clk 0:00:17]} 24. Qxe4 {[%clk 0:00:34]}  Qc7 {[%clk 0:00:13]} 25. Re2 {[%clk 0:00:28]}  Qc6 {[%clk 0:00:10]} 26. Qxc6 {[%clk 0:00:26]}  Rxc6 {[%clk 0:00:11]} 27. exd6 {[%clk 0:00:26]}  Nxd6 {[%clk 0:00:10]} 28. Ne5 {[%clk 0:00:26]}  Rc1+ {[%clk 0:00:10]} 29. Kh2 {[%clk 0:00:26]}  Nc4 {[%clk 0:00:10]} 30. Nd3 {[%clk 0:00:19]}  Rd1 {[%clk 0:00:09]} 31. Nb4 {[%clk 0:00:14]}  a5 {[%clk 0:00:08]} 32. Nc6 {[%clk 0:00:15]}  a4 {[%clk 0:00:07]} 33. Ne5 {[%clk 0:00:11]}  Nd2 {[%clk 0:00:07]} 34. g4 {[%clk 0:00:08]}  Kf8 {[%clk 0:00:03]} 35. Kg2 {[%clk 0:00:06]}  Ke7 {[%clk 0:00:03]} 36. Re3 {[%clk 0:00:05]}  Rb1 {[%clk 0:00:02]} 37. Nd3 {[%clk 0:00:04]}  Nc4 {[%clk 0:00:01]} 38. Rf3 {[%clk 0:00:03]}  f6 {[%clk 0:00:01]} 39. h4 {[%clk 0:00:03]}  Kd6 {[%clk 0:00:02]} 40. g5 {[%clk 0:00:03]}  Nxb2 {[%clk 0:00:02]} 41. Nxb2 {[%clk 0:00:02]}  Rxb2 {[%clk 0:00:02]} 42. gxf6 {[%clk 0:00:03]}  gxf6 {[%clk 0:00:03]} 43. Rxf6 {[%clk 0:00:03]}  Rb3 {[%clk 0:00:03]} 44. Rxh6 {[%clk 0:00:03]}  Rxa3 {[%clk 0:00:04]} 45. h5 {[%clk 0:00:03]}  Rd3 {[%clk 0:00:04]} 46. Rh8 {[%clk 0:00:03]}  Rxd4 {[%clk 0:00:04]} 47. h6 {[%clk 0:00:04]}  Rh4 {[%clk 0:00:04]} 48. Rb8 {[%clk 0:00:04]}  b4 {[%clk 0:00:04]} 49. h7 {[%clk 0:00:04]}  Rxh7 {[%clk 0:00:04]} 50. Rxb4 {[%clk 0:00:04]}  Ra7 {[%clk 0:00:05]} 51. Rb2 {[%clk 0:00:04]}  a3 {[%clk 0:00:05]} 52. Ra2 {[%clk 0:00:04]}  Kd5 {[%clk 0:00:06]} 53. Kf3 {[%clk 0:00:04]}  Kc4 {[%clk 0:00:06]} 54. Ke4 {[%clk 0:00:04]}  Kb3 {[%clk 0:00:07]} 55. Ra1 {[%clk 0:00:03]}  Kb2 {[%clk 0:00:07]} 56. Re1 {[%clk 0:00:03]}  a2 {[%clk 0:00:07]} 57. f4 {[%clk 0:00:03]}  a1=Q {[%clk 0:00:07]} 58. Rxa1 {[%clk 0:00:03]}  Rxa1 {[%clk 0:00:07]} 59. Ke5 {[%clk 0:00:03]}  Ra6 {[%clk 0:00:08]} 60. f5 {[%clk 0:00:02]}  exf5 {[%clk 0:00:09]} 61. Kxf5 {[%clk 0:00:02]}  Kc3 {[%clk 0:00:09]} 62. Ke5 {[%clk 0:00:03]}  Kc4 {[%clk 0:00:10]} 63. Ke4 {[%clk 0:00:03]}  Re6+ {[%clk 0:00:10]} 64. Kf5 {[%clk 0:00:04]}  Kd5 {[%clk 0:00:11]} 65. Kf4 {[%clk 0:00:05]}  Re8 {[%clk 0:00:11]} 66. Kf5 {[%clk 0:00:05]}  Rf8+ {[%clk 0:00:11]} 67. Kg6 {[%clk 0:00:05]}  Ke6 {[%clk 0:00:11]} 68. Kg7 {[%clk 0:00:05]}  Rf1 {[%clk 0:00:12]} 69. Kg6 {[%clk 0:00:06]}  Rg1+ {[%clk 0:00:12]} 70. Kh5 {[%clk 0:00:06]}  Kf5 {[%clk 0:00:12]} 71. Kh4 {[%clk 0:00:06]}  Rg8 {[%clk 0:00:12]} 72. Kh3 {[%clk 0:00:06]}  Kf4 {[%clk 0:00:13]} 73. Kh2 {[%clk 0:00:06]}  Kf3 {[%clk 0:00:13]} 74. Kh1 {[%clk 0:00:06]}  Kf2 {[%clk 0:00:14]} 75. Kh2 {[%clk 0:00:07]}  Rh8# {[%clk 0:00:14]} 0-1


[Site "https://www.chess.com"]